bitfinex/quotes_SOLUSD_20220307
["timestamp","ask_amount","ask_price","bid_price","bid_amount"]
[1646672831987,17.8918,83.91,83.84,39.38775447]
[1646672832189,17.8918,83.91,83.85,17.8881]
[1646672832587,26.20613526,83.927,83.851,116.5]
[1646672832789,6.0,83.926,83.854,47.57143894]
[1646672832987,23.37,83.927,83.854,47.57143894]
[1646672833389,23.37,83.927,83.871,42.05144614]
[1646672833587,17.8864,83.92,83.871,42.05144614]
[1646672834590,17.8864,83.92,83.86,17.8872]
[1646672834789,17.8864,83.92,83.861,0.25]
[1646672834989,5.96,83.919,83.861,0.25]
[1646672835188,23.37,83.927,83.841,23.4547]
[1646672835189,17.8881,83.91,83.841,23.4547]
[1646672835389,17.8881,83.91,83.832,23.3616]
[1646672835390,0.25,83.909,83.832,23.3616]
[1646672835589,29.8534,83.909,83.819,45.51573543]
[1646672835791,5.961,83.908,83.819,45.51573543]
[1646672835988,5.961,83.908,83.803,46.4044]
[1646672835989,116.5,83.906,83.803,46.4044]
[1646672836188,128.711,83.905,83.803,46.4044]
[1646672836589,17.8969,83.89,83.803,46.4044]
[1646672836790,12.212,83.889,83.803,46.4044]
[1646672836989,12.212,83.889,83.827,38.34010788]
[1646672837189,12.212,83.889,83.803,46.4044]
[1646672837390,23.6034,83.888,83.803,46.4044]
[1646672837589,12.212,83.887,83.803,46.4044]
[1646672838090,17.8977,83.88,83.803,46.4044]
[1646672838291,11.962,83.879,83.816,45.26444729]
[1646672838989,11.962,83.879,83.803,46.4044]
[1646672838990,17.8981,83.87,83.803,46.4044]
[1646672839990,17.8981,83.87,83.813,48.33836376]
[1646672840391,17.8981,83.87,83.814,23.972]
[1646672840794,11.962,83.869,83.814,23.972]
[1646672840993,17.9023,83.86,83.814,23.972]
[1646672841193,5.963,83.859,83.814,23.972]
[1646672841792,6.0,83.858,83.814,23.972]
[1646672841994,5.963,83.859,83.814,23.972]
[1646672842796,6.0,83.858,83.814,23.972]
[1646672842995,5.964,83.857,83.815,0.25]
[1646672843194,5.964,83.869,83.815,0.25]
[1646672843397,6.0,83.868,83.815,0.25]
[1646672843598,5.963,83.867,83.815,0.25]
[1646672843898,6.25,83.866,83.803,23.0428]
[1646672844098,5.964,83.865,83.803,23.0428]
[1646672844299,6.25,83.864,83.803,23.0428]
[1646672844498,5.964,83.863,83.803,23.0428]
[1646672844697,6.25,83.862,83.803,23.0428]
[1646672844900,5.964,83.861,83.803,23.0428]
[1646672845097,6.25,83.86,83.803,23.0428]
[1646672845297,5.964,83.859,83.803,23.0428]
[1646672845500,0.25,83.858,83.803,23.0428]
[1646672845697,5.964,83.857,83.803,23.0428]
[1646672845900,0.25,83.856,83.803,23.0428]
[1646672846102,5.964,83.855,83.803,23.0428]
[1646672846297,5.964,83.855,83.791,24.1644]
[1646672846298,6.25,83.854,83.791,24.1644]
[1646672846499,5.964,83.853,83.771,24.4454]
[1646672846699,17.17,83.85,83.784,1.0547641]
[1646672846898,12.215,83.849,83.784,1.0547641]
[1646672847197,8.80113526,83.849,83.785,34.53483779]
[1646672847599,6.0,83.848,83.785,34.53483779]
[1646672847800,116.5,83.846,83.784,1.0547641]
[1646672848002,11.965,83.845,83.784,1.0547641]
[1646672848200,35.0801,83.84,83.784,1.0547641]
[1646672848402,11.965,83.839,83.784,1.0547641]
[1646672848599,0.25,83.838,83.784,1.0547641]
[1646672848800,5.965,83.837,83.784,1.0547641]
[1646672849000,6.25,83.836,83.784,1.0547641]
[1646672849199,5.965,83.835,83.784,1.0547641]
[1646672849399,5.965,83.835,83.785,0.25]
[1646672849599,17.17,83.85,83.785,0.25]
[1646672849799,11.965,83.849,83.785,0.25]
[1646672849999,6.0,83.849,83.785,0.25]
[1646672850399,17.17,83.85,83.785,0.25]
[1646672850601,5.965,83.849,83.785,0.25]
[1646672851003,0.25,83.848,83.785,0.25]
[1646672851203,5.965,83.847,83.785,0.25]
[1646672851403,5.965,83.849,83.785,0.25]
[1646672851601,5.965,83.849,83.785,6.25]
[1646672851803,5.965,83.849,83.786,6.0]
[1646672852102,5.965,83.849,83.785,0.25]
[1646672852303,5.965,83.849,83.784,0.25]
[1646672852802,5.965,83.849,83.782,24.2627]
[1646672853003,17.9075,83.84,83.749,75.3411]
[1646672853204,12.216,83.839,83.772,0.25]
[1646672853902,35.7332,83.839,83.772,45.553035]
[1646672854102,35.7332,83.839,83.752,23.9642]
[1646672854303,38.56933526,83.839,83.752,23.9642]
[1646672855102,38.56933526,83.839,83.772,47.11178971]
[1646672856804,38.31933526,83.839,83.772,47.11178971]
[1646672857003,38.31933526,83.839,83.78,17.9042]
[1646672857004,23.5172,83.839,83.78,17.9042]
[1646672857203,2.83613526,83.852,83.78,17.9042]
[1646672857204,5.965,83.857,83.781,116.75]
[1646672857404,5.965,83.864,83.782,0.51106185]
[1646672857610,5.965,83.864,83.781,122.75]
[1646672858003,5.965,83.864,83.8,17.8953]
[1646672858205,5.965,83.864,83.802,45.3721224]
[1646672858404,5.965,83.864,83.803,0.25]
[1646672859005,0.25,83.863,83.803,0.25]
[1646672859206,5.964,83.862,83.803,0.25]
[1646672859407,0.25,83.861,83.803,0.25]
[1646672859705,5.964,83.86,83.803,0.25]
[1646672860108,5.964,83.86,83.81,17.8977]
[1646672860306,0.25,83.861,83.81,17.717198]
[1646672860514,0.25,83.864,83.81,17.717198]
[1646672861712,0.25,83.864,83.803,0.25]
[1646672862109,0.25,83.864,83.802,45.3721224]
[1646672862308,17.17,83.86,83.802,45.3721224]
[1646672862508,12.214,83.859,83.802,45.3721224]
[1646672862711,15.05013526,83.859,83.802,45.3721224]
[1646672862913,12.214,83.859,83.802,45.3721224]
[1646672863109,17.9036,83.85,83.802,45.3721224]
[1646672863311,6.214,83.849,83.802,45.3721224]
[1646672863510,0.25,83.849,83.802,45.3721224]
[1646672864332,0.25,83.857,83.802,45.3721224]
[1646672864533,5.964,83.856,83.802,45.3721224]
[1646672864733,0.25,83.855,83.802,45.3721224]
[1646672864934,5.964,83.854,83.802,45.3721224]
[1646672865135,5.964,83.858,83.802,45.3721224]
[1646672865538,5.964,83.858,83.782,23.9126]
[1646672865736,116.5,83.856,83.783,0.25]
[1646672865937,116.5,83.854,83.783,0.25]
[1646672866137,17.17,83.85,83.783,0.25]
[1646672866439,17.9064,83.84,83.783,0.25]
[1646672866637,17.9064,83.84,83.783,47.23302498]
[1646672866638,12.215,83.839,83.783,47.23302498]
[1646672867040,12.215,83.839,83.782,23.9126]
[1646672868038,12.215,83.839,83.771,24.4454]
[1646672868238,17.9076,83.83,83.772,0.25]
[1646672868439,6.216,83.829,83.772,0.25]
[1646672868640,6.0,83.828,83.772,0.25]
[1646672868839,5.966,83.827,83.772,0.25]
[1646672869040,6.0,83.826,83.772,47.69580731]
[1646672869241,5.966,83.825,83.772,47.69580731]
[1646672869442,6.0,83.824,83.772,47.69580731]
[1646672869638,5.966,83.823,83.772,47.69580731]
[1646672870640,5.966,83.828,83.772,47.69580731]
[1646672871444,5.966,83.828,83.78,17.9049]
[1646672871744,5.966,83.837,83.78,17.9049]
[1646672871942,5.965,83.851,83.781,116.75]
[1646672872142,28.6438,83.864,83.782,0.50226235]
[1646672872344,22.6788,83.864,83.782,0.50226235]
[1646672872541,22.6788,83.864,83.801,40.39349656]
[1646672872745,22.6788,83.864,83.802,23.7825]
[1646672873243,0.25,83.863,83.802,23.7825]
[1646672873444,5.964,83.862,83.802,23.7825]
[1646672873643,0.25,83.861,83.802,23.7825]
[1646672873944,5.964,83.86,83.802,0.25]
[1646672874247,5.964,83.86,83.81,17.8984]
[1646672874844,23.8644,83.86,83.801,40.39349656]
[1646672875045,23.8644,83.86,83.802,23.9821]
[1646672875345,5.964,83.86,83.802,23.9821]
[1646672875744,0.25,83.859,83.802,23.9821]
[1646672875944,5.964,83.858,83.802,23.9821]
[1646672876144,0.25,83.857,83.802,23.9821]
[1646672876344,5.964,83.856,83.802,23.9821]
[1646672876545,0.25,83.855,83.802,23.9821]
[1646672876749,5.964,83.854,83.802,23.9821]
[1646672876946,0.25,83.853,83.802,23.9821]
[1646672877148,0.25,83.855,83.802,23.9821]
[1646672878047,0.25,83.859,83.802,23.9821]
[1646672878847,6.25,83.859,83.801,40.39349656]
[1646672879049,5.964,83.858,83.801,40.39349656]
[1646672879252,6.25,83.857,83.79,17.9027]
[1646672879448,6.25,83.857,83.791,6.25]
[1646672879650,5.964,83.856,83.791,0.25]
[1646672879849,6.25,83.855,83.791,0.25]
[1646672880049,5.964,83.854,83.791,0.25]
[1646672880250,6.25,83.853,83.791,0.25]
[1646672880450,5.965,83.852,83.791,0.25]
[1646672880651,6.25,83.851,83.774,0.25]
[1646672880849,23.135,83.85,83.774,0.25]
[1646672881050,6.25,83.849,83.774,0.25]
[1646672881252,116.5,83.847,83.774,0.25]
[1646672881455,6.25,83.846,83.774,0.25]
[1646672881652,6.25,83.849,83.774,0.25]
[1646672881854,17.9097,83.84,83.774,0.25]
[1646672882054,6.216,83.839,83.774,0.25]
[1646672882255,30.7126,83.839,83.774,0.25]
[1646672882452,24.7466,83.839,83.773,47.14155065]
[1646672883452,24.7466,83.839,83.78,17.9048]
[1646672884053,24.7466,83.839,83.773,47.14155065]
[1646672884254,11.966,83.838,83.773,47.14155065]
[1646672884455,0.25,83.837,83.773,47.14155065]
[1646672884652,17.909,83.83,83.773,47.14155065]
[1646672884852,6.216,83.829,83.774,0.25]
[1646672885054,0.25,83.829,83.774,0.25]
[1646672885352,5.966,83.838,83.774,0.25]
[1646672885553,17.17,83.85,83.774,0.25]
[1646672885754,23.2637,83.858,83.78,17.9047]
[1646672885953,23.2637,83.858,83.781,0.25]
[1646672887057,23.2637,83.858,83.791,36.18225791]
[1646672887254,23.2637,83.858,83.792,23.9308]
[1646672888056,23.2637,83.858,83.8,17.9004]
[1646672888455,0.25,83.857,83.8,17.9004]
[1646672888655,0.25,83.857,83.792,23.9308]
[1646672888858,17.9039,83.85,83.792,23.9308]
[1646672889057,6.215,83.849,83.792,23.6808]
[1646672890260,0.25,83.849,83.8,17.9003]
[1646672892865,5.965,83.857,83.801,0.25]
[1646672893063,0.91,83.941,83.801,0.25]
[1646672893064,5.964,83.87,83.81,17.895]
[1646672893267,5.963,83.875,83.811,184.58222824]
[1646672893466,5.963,83.879,83.811,183.96124079]
[1646672893665,5.963,83.89,83.811,183.96124079]
[1646672893867,5.963,83.89,83.82,59.6369]
[1646672894068,5.963,83.89,83.821,139.3288]
[1646672894266,5.963,83.89,83.83,17.8922]
[1646672894465,5.963,83.89,83.831,22.8288]
[1646672894867,23.864,83.891,83.831,22.8288]
[1646672895867,17.17,83.9,83.84,17.8902]
[1646672896068,5.961,83.899,83.841,63.96656393]
[1646672896568,17.17,83.9,83.841,63.96656393]
[1646672896767,24.2794,83.917,83.85,17.8897]
[1646672896970,1.53490818,83.918,83.851,0.25]
[1646672897168,1.53490818,83.919,83.851,116.75]
[1646672897367,1.53490818,83.925,83.852,0.58086986]
[1646672897566,5.96,83.924,83.861,116.5]
[1646672897770,1.53490818,83.934,83.862,0.25]
[1646672897967,5.958,83.933,83.862,0.25]
[1646672898169,5.958,83.936,83.871,36.16408998]
[1646672898468,5.958,83.938,83.872,0.25]
[1646672898669,5.958,83.939,83.872,0.25]
[1646672899069,5.958,83.939,83.871,36.16408998]
[1646672899271,28.32155767,83.938,83.871,36.16408998]
[1646672899471,29.85646585,83.938,83.871,36.16408998]
[1646672899671,1.53490818,83.935,83.871,36.16408998]
[1646672899870,7.78490818,83.934,83.871,36.16408998]
[1646672900072,17.17,83.93,83.871,36.16408998]
[1646672900272,12.208,83.929,83.871,36.16408998]
[1646672900671,6.25,83.929,83.871,36.16408998]
[1646672900873,6.25,83.929,83.861,24.9464]
[1646672901072,6.25,83.929,83.842,24.0654]
[1646672901073,116.5,83.928,83.843,24.6386]
[1646672901273,17.8877,83.92,83.844,0.25]
[1646672901474,12.21,83.919,83.844,0.25]
[1646672901972,12.21,83.919,83.844,41.73058814]
[1646672902172,6.21,83.919,83.844,41.73058814]
[1646672902372,0.25,83.919,83.844,41.73058814]
[1646672902571,0.25,83.919,83.85,17.8894]
[1646672902774,0.25,83.919,83.851,0.25]
[1646672903172,17.17,83.92,83.851,0.25]
[1646672903773,17.17,83.92,83.845,0.25]
[1646672904275,17.17,83.92,83.844,41.48058814]
[1646672904477,5.96,83.919,83.844,41.48058814]
[1646672904877,17.17,83.92,83.844,41.48058814]
[1646672905279,35.058,83.92,83.86,17.8875]
[1646672905491,1.53490818,83.946,83.86,17.8875]
[1646672905691,6.25,83.945,83.861,24.2123]
[1646672905891,17.17,83.94,83.861,24.2123]
[1646672906091,6.25,83.939,83.861,24.2123]
[1646672906493,17.8862,83.93,83.861,24.2123]
[1646672906693,6.208,83.929,83.861,24.2123]
[1646672908097,6.208,83.929,83.87,17.8857]
[1646672908298,6.208,83.929,83.871,39.63303641]
[1646672909397,6.208,83.929,83.861,23.9623]
[1646672909600,116.5,83.927,83.861,23.9623]
[1646672909798,12.208,83.926,83.861,23.9623]
[1646672910202,116.5,83.925,83.832,24.0264]
[1646672910410,17.17,83.91,83.843,70.79272594]
[1646672910599,6.25,83.909,83.843,70.79272594]
[1646672910999,6.25,83.909,83.82,26.56983575]
[1646672911201,116.5,83.907,83.811,22.5449]
[1646672911399,116.5,83.905,83.811,22.5449]
[1646672911599,12.212,83.904,83.811,22.5449]
[1646672911800,17.17,83.89,83.811,22.5449]
[1646672912000,12.212,83.889,83.811,22.5449]
[1646672912201,12.212,83.889,83.812,48.40456678]
[1646672912401,12.212,83.889,83.813,0.25]
[1646672912602,116.5,83.888,83.779,26.56983575]
[1646672912801,116.5,83.879,83.779,26.56983575]
[1646672913005,17.8969,83.88,83.779,26.56983575]
[1646672913006,116.5,83.869,83.779,26.56983575]
[1646672913202,116.5,83.867,83.779,26.56983575]
[1646672913400,12.214,83.866,83.779,26.56983575]
[1646672913605,12.214,83.866,83.78,43.13245708]
[1646672913802,0.25,83.866,83.78,43.13245708]
[1646672914003,0.25,83.866,83.781,26.56983575]
[1646672914601,0.25,83.869,83.781,143.06983575]
[1646672914803,5.964,83.868,83.782,0.25]
[1646672915002,0.25,83.867,83.782,26.81983575]
[1646672915205,5.964,83.866,83.783,26.56983575]
[1646672915506,0.25,83.865,83.784,0.25]
[1646672915703,17.17,83.86,83.784,0.25]
[1646672915902,116.5,83.858,83.78,43.13245708]
[1646672916105,116.5,83.856,83.78,43.13245708]
[1646672916305,116.5,83.854,83.78,43.13245708]
[1646672916502,35.0804,83.84,83.78,43.13245708]
[1646672916702,5.965,83.839,83.781,0.25]
[1646672916903,5.965,83.854,83.781,116.75]
[1646672917104,0.25,83.853,83.782,26.56983575]
[1646672917303,0.25,83.853,83.783,0.25]
[1646672917704,0.25,83.853,83.784,26.56983575]
[1646672917905,5.965,83.859,83.785,0.25]
[1646672918110,0.25,83.858,83.79,17.899]
[1646672918305,5.964,83.857,83.791,0.25]
[1646672918505,0.25,83.856,83.791,0.25]
[1646672918707,5.964,83.855,83.791,0.25]
[1646672918909,0.25,83.854,83.791,0.25]
[1646672919109,5.964,83.853,83.791,0.25]
[1646672919308,0.25,83.852,83.791,0.25]
[1646672919508,5.965,83.851,83.8,17.8999]
[1646672919709,0.25,83.85,83.8,17.8999]
[1646672919909,5.964,83.849,83.8,17.8999]
[1646672920108,5.964,83.849,83.785,0.25]
[1646672920818,6.25,83.848,83.781,0.25]
[1646672921010,5.965,83.847,83.781,0.25]
[1646672921210,6.25,83.846,83.781,0.25]
[1646672921811,6.0,83.845,83.781,0.25]
[1646672922111,0.25,83.844,83.781,0.25]
[1646672922312,6.0,83.849,83.781,26.81983575]
[1646672922511,17.17,83.85,83.782,17.14698299]
[1646672922811,17.17,83.85,83.783,0.25]
[1646672923010,17.17,83.85,83.783,26.81983575]
[1646672923211,17.17,83.85,83.79,17.9023]
[1646672923413,17.17,83.85,83.791,0.25]
[1646672923811,0.25,83.849,83.791,0.25]
[1646672924313,5.965,83.848,83.791,0.25]
[1646672925413,5.965,83.848,83.8,17.9006]
[1646672925612,5.964,83.849,83.801,0.25]
[1646672925816,17.17,83.85,83.801,0.25]
[1646672927015,5.964,83.881,83.801,0.25]
[1646672927215,5.963,83.882,83.802,0.75925059]
[1646672927417,17.17,83.89,83.804,0.75925059]
[1646672927616,5.963,83.889,83.811,35.92424514]
[1646672927820,17.17,83.89,83.813,0.75925059]
[1646672928217,17.17,83.89,83.814,26.56983575]
[1646672928416,17.17,83.89,83.821,0.75925059]
[1646672928619,17.17,83.89,83.83,17.8882]
[1646672928816,17.17,83.89,83.831,0.25]
[1646672929317,35.0644,83.89,83.831,0.25]
[1646672929517,17.17,83.89,83.831,0.25]
[1646672929718,17.17,83.89,83.84,17.8921]
[1646672929918,17.17,83.89,83.841,40.84837958]
[1646672930521,17.17,83.89,83.841,40.34837958]
[1646672931520,5.961,83.889,83.841,40.34837958]
[1646672932321,5.961,83.889,83.842,0.25]
[1646672934022,5.961,83.889,83.841,40.34837958]
[1646672934222,6.25,83.888,83.841,40.34837958]
[1646672934422,5.961,83.887,83.841,40.34837958]
[1646672934624,5.962,83.889,83.841,40.34837958]
[1646672936626,5.962,83.889,83.841,39.84837958]
[1646672937028,5.961,83.906,83.842,0.25]
[1646672937228,6.25,83.905,83.842,24.8853]
[1646672937527,0.25,83.905,83.842,24.8853]
[1646672938131,0.25,83.905,83.85,17.8896]
[1646672938328,0.25,83.908,83.85,17.8896]
[1646672938530,0.25,83.908,83.842,24.6353]
[1646672938730,5.961,83.907,83.842,24.6353]
[1646672938932,6.25,83.906,83.842,24.6353]
[1646672939147,5.961,83.905,83.842,24.6353]
[1646672939347,17.8924,83.9,83.842,24.6353]
[1646672939548,12.211,83.899,83.843,44.24871367]
[1646672940349,5.961,83.899,83.843,44.24871367]
[1646672940550,17.17,83.9,83.844,0.25]
[1646672941250,5.961,83.915,83.844,0.25]
[1646672941460,6.0,83.914,83.85,17.8883]
[1646672941650,5.96,83.913,83.85,17.8883]
[1646672941851,6.0,83.912,83.85,17.8883]
[1646672942051,5.96,83.911,83.85,17.8883]
[1646672942251,6.25,83.91,83.844,0.25]
[1646672942452,5.961,83.909,83.844,0.25]
[1646672942654,17.8919,83.9,83.844,0.25]
[1646672942854,6.211,83.899,83.844,0.25]
[1646672943453,0.25,83.899,83.844,0.25]
[1646672943655,5.961,83.909,83.85,17.889]
[1646672943855,6.0,83.91,83.851,116.75]
[1646672944056,1.53490818,83.93,83.851,116.75]
[1646672944254,1.53490818,83.93,83.851,0.25]
[1646672944655,5.96,83.929,83.86,17.8816]
[1646672944855,5.96,83.917,83.861,37.60946338]
[1646672945058,5.96,83.917,83.861,37.35946338]
[1646672945257,0.25,83.916,83.861,37.35946338]
[1646672945458,0.25,83.916,83.862,0.25]
[1646672945656,1.53490818,83.933,83.871,116.5]
[1646672945856,1.53490818,83.933,83.873,0.54551477]
[1646672946057,1.53490818,83.945,83.872,0.25]
[1646672946257,5.958,83.944,83.872,0.25]
[1646672946857,5.958,83.944,83.871,122.75]
[1646672947058,5.958,83.944,83.893,116.5]
[1646672947256,1.53490818,83.953,83.895,0.51675549]
[1646672947457,1.53490818,83.971,83.895,0.51675549]
[1646672947657,6.0,83.97,83.894,24.6105]
[1646672947860,24.70490818,83.97,83.894,24.6105]
[1646672948063,5.957,83.969,83.894,24.6105]
[1646672948260,6.25,83.968,83.894,24.6105]
[1646672948461,5.957,83.967,83.894,24.6105]
[1646672948667,6.25,83.966,83.894,24.6105]
[1646672948863,5.957,83.965,83.894,24.6105]
[1646672949162,6.25,83.964,83.894,24.6105]
[1646672949364,5.957,83.963,83.894,24.6105]
[1646672949563,6.25,83.962,83.894,24.6105]
[1646672949760,5.957,83.961,83.894,24.6105]
[1646672949961,6.25,83.96,83.894,24.6105]
[1646672950163,5.957,83.959,83.851,116.5]
[1646672950360,7.78490818,83.958,83.864,23.583]
[1646672950561,1.53490818,83.953,83.864,23.583]
[1646672950770,17.17,83.95,83.864,23.583]
[1646672950962,12.208,83.949,83.864,23.583]
[1646672951163,12.208,83.949,83.865,35.44357683]
[1646672951364,17.8836,83.94,83.87,17.8854]
[1646672951561,12.208,83.939,83.871,0.25]
[1646672952262,17.8854,83.93,83.871,0.25]
[1646672952465,12.208,83.929,83.871,0.25]
[1646672952663,12.208,83.929,83.808,78.3193]
[1646672952865,22.7398,83.928,83.837,22.5113]
[1646672953163,13.74490818,83.927,83.837,22.5113]
[1646672953365,13.74490818,83.927,83.838,41.5188959]
[1646672953563,17.892,83.92,83.84,17.8919]
[1646672953764,12.21,83.919,83.84,17.8919]
[1646672954163,5.96,83.919,83.84,17.8919]
[1646672954369,1.53490818,83.939,83.842,116.5]
[1646672954563,5.96,83.938,83.87,17.8785]
[1646672954765,6.0,83.937,83.871,38.1001814]
[1646672954963,6.0,83.939,83.871,38.1001814]
[1646672955165,5.958,83.938,83.871,38.1001814]
[1646672955564,6.0,83.937,83.871,38.1001814]
[1646672955765,5.958,83.936,83.871,38.1001814]
[1646672955964,6.0,83.935,83.871,38.1001814]
[1646672956164,5.958,83.934,83.88,17.883]
[1646672956364,6.0,83.933,83.881,0.25]
[1646672956565,0.25,83.932,83.881,0.25]
[1646672956764,17.8847,83.94,83.881,0.25]
[1646672956765,6.25,83.939,83.881,0.25]
[1646672957366,1.53490818,83.944,83.89,17.8813]
[1646672957566,1.53490818,83.956,83.891,152.74054979]
[1646672957767,1.53490818,83.961,83.892,0.25]
[1646672957967,5.957,83.96,83.892,0.25]
[1646672958167,1.53490818,83.965,83.892,24.9391]
[1646672958368,1.53490818,83.963,83.892,24.9391]
[1646672958566,1.53490818,83.967,83.892,24.9391]
[1646672958766,1.53490818,83.967,83.9,17.8765]
[1646672958767,11.957,83.966,83.9,17.8765]
[1646672958966,11.957,83.966,83.901,0.25]
[1646672959166,1.53490818,83.965,83.892,24.6891]
[1646672959367,1.53490818,83.962,83.893,0.25]
[1646672959569,1.53490818,83.954,83.893,0.25]
[1646672959768,13.49190818,83.953,83.893,0.25]
[1646672960168,17.8836,83.94,83.893,0.25]
[1646672960367,11.958,83.939,83.893,0.25]
[1646672960569,6.0,83.939,83.89,0.25]
[1646672960771,6.0,83.952,83.89,0.25]
[1646672960967,0.25,83.951,83.89,0.25]
[1646672961369,1.53490818,83.956,83.89,18.1314]
[1646672961867,1.53490818,83.959,83.891,116.5]
[1646672962070,1.53490818,83.963,83.892,0.25]
[1646672962268,5.957,83.962,83.892,0.25]
[1646672962470,5.957,83.967,83.895,116.5]
[1646672962669,0.25,83.966,83.896,0.75801376]
[1646672962870,5.957,83.965,83.896,0.25]
[1646672963269,1.53490818,83.971,83.896,0.25]
[1646672963270,5.957,83.97,83.91,17.8756]
[1646672963471,5.956,83.971,83.911,151.99595698]
[1646672963672,5.956,83.975,83.911,151.99595698]
[1646672963872,7.49090818,83.977,83.913,116.5]
[1646672964172,1.53490818,83.979,83.914,0.25]
[1646672964375,5.956,83.978,83.92,17.8708]
[1646672964574,5.955,83.981,83.921,0.25]
[1646672964975,5.955,83.982,83.921,0.25]
[1646672965176,5.955,83.983,83.921,0.25]
[1646672965397,5.955,83.984,83.921,0.25]
[1646672965575,5.955,83.984,83.93,17.8723]
[1646672965775,1.53490818,83.989,83.933,116.5]
[1646672965975,1.53490818,83.998,83.935,116.5]
[1646672966176,1.53490818,83.999,83.936,0.25]
[1646672966376,1.53490818,84.005,83.937,0.61106339]
[1646672966576,1.53490818,84.012,83.937,0.61106339]
[1646672966776,5.954,84.011,83.95,17.8671]
[1646672966979,1.53490818,84.017,83.951,159.11168124]
[1646672967179,1.53490818,84.015,83.952,48.01386339]
[1646672967378,1.53490818,84.015,83.953,0.25]
[1646672967577,1.53490818,84.023,83.953,0.25]
[1646672967776,5.953,84.036,83.953,0.25]
[1646672967777,0.25,84.022,83.97,17.8643]
[1646672967976,5.952,84.021,83.971,42.12260552]
[1646672968177,5.952,84.023,83.971,42.12260552]
[1646672968378,0.25,84.022,83.971,42.12260552]
[1646672968576,5.952,84.021,83.971,42.12260552]
[1646672969277,18.1159,84.02,83.971,0.25]
[1646672969479,5.952,84.019,83.953,0.25]
[1646672969677,0.25,84.018,83.953,0.25]
[1646672969878,1.53490818,84.019,83.953,0.25]
[1646672970077,1.53490818,84.015,83.953,0.25]
[1646672970279,7.78490818,84.014,83.953,34.92387075]
[1646672970479,6.25,84.014,83.953,34.92387075]
[1646672970877,0.25,84.014,83.953,34.92387075]
[1646672971284,0.25,84.015,83.953,34.92387075]
[1646672971883,1.78490818,84.015,83.953,34.92387075]
[1646672972077,6.0,84.014,83.953,34.92387075]
[1646672972277,6.203,84.013,83.953,34.92387075]
[1646672972481,6.0,84.012,83.953,34.92387075]
[1646672972678,6.203,84.011,83.953,34.92387075]
[1646672972900,6.0,84.01,83.96,17.8665]
[1646672973079,6.203,84.009,83.961,0.25]
[1646672973278,6.0,84.008,83.953,34.92387075]
[1646672973481,0.25,84.007,83.953,34.92387075]
[1646672974079,6.0,84.015,83.953,34.92387075]
[1646672974080,5.953,84.014,83.953,34.92387075]
[1646672974279,6.0,84.013,83.954,122.5]
[1646672974482,6.0,84.013,83.955,0.25]